Cogmind - Beta 14 @@@ ROGUE MODE // 2024.10.06 @ 13:30:01 Player: Kinga Result: Destroyed by H-77 Assassin with Coil Gun Performance ------------- Evolutions (7) 3500 Regions Visited (16) 3200 Robots Destroyed (187) 935 Value Destroyed (11653) 11653 Prototype IDs (9) 180 Alien Tech Used (0) 0 Bonus (8110) 8110 TOTAL SCORE: 27578 Bonus ------- High Alert Combat Kills 2392 Follower Combat Kills 1877 Entered Garrisons 1200 Used RIF Installer 3000 Friendly Fire -359 Cogmind --------- Core Integrity 0/1300 Matter 127/300 Energy 95/100 System Corruption 38% Temperature Cool (0) Movement Core (1550) Ox30 Location -3/Research Parts ------- > --- POWER (2) -------- (None) > --- PROPULSION (5) --- (None) > --- UTILITY (11) ----- Huge Storage Unit Relay Coupler [NC] (68) Relay Coupler [Specialist] (11) > --- WEAPON (3) ------- Heavy Gauss Cannon (fused) > --- INVENTORY (25) --- Antigrav Array High-capacity Matter Pod (200) Stasis Canceller Antimissile System Relay Coupler [Cutter] (29) Relay Coupler [Demolisher] (26) Relay Coupler [Behemoth] (10) Relay Coupler [Proto] (9) Relay Coupler [Proto] (9) Relay Coupler [Proto] (9) Relay Coupler [Proto] (9) Long-range Tractor Beam HERF Cannon Tesla Bomb Launcher Peak State ------------ > --- POWER ------------ Neutrino Core Micro Fission Core > --- PROPULSION ------- Carbon-fiber Leg Flexi-carbon Leg Flexi-carbon Leg Flexi-carbon Leg Biometal Leg > --- UTILITY ---------- Improved Cooling System Improved Cooling System Huge Storage Unit Improved Light Armor Plating Advanced Thermal Defense Suite Relay Coupler [NC] Relay Coupler [Swarmer] Relay Coupler [Grunt] Relay Coupler [Sentry] Relay Coupler [Specialist] Relay Coupler [Hunter] > --- WEAPON ----------- Matter Neutralizer Matter Neutralizer Advanced Remote Datajack > --- INVENTORY -------- Light Angular Momentum Engine Improved Medium Treads Improved Medium Treads Armored Huge Wheel High-capacity Matter Pod Stasis Canceller Improved Medium Armor Plating Layered Medium Armor Plating Antimissile System Relay Coupler [Cutter] Relay Coupler [Demolisher] Relay Coupler [Behemoth] Relay Coupler [Proto] Relay Coupler [Proto] Relay Coupler [Proto] Relay Coupler [Proto] Long-range Tractor Beam HERF Cannon Heavy Phase Cannon Matter Neutralizer Tesla Bomb Launcher Advanced Remote Datajack Plasma Cutter Shock Maul [Rating: 115] Favorites ----------- Power Nuclear Core Engine Light Angular Momentum Engine Power Core Nuclear Core Propulsion Advanced Treads Treads Advanced Treads Leg Carbon-fiber Leg Wheel Wheel Hover Unit Antigrav Array Flight Unit Improved Flight Unit Utility Huge Storage Unit Device Experimental Heat Sink Storage Huge Storage Unit Processor Transport Network Coupler Hackware Relay Coupler [Grunt] Protection Heavy Armor Plating Weapon Advanced Beam Rifle Energy Gun Advanced Beam Rifle Energy Cannon Matter Neutralizer Ballistic Gun Improved Assault Rifle Ballistic Cannon Advanced Assault Cannon Launcher Mini Grenade Launcher Special Weapon Advanced Remote Datajack Impact Weapon Shock Maul Special Melee Weapon Datajack Build | -11 -10 -9 -8 -8 -8 -7 -7 -6 -6 -6 -6 -5 -5 -4 -4 -3 ------- Run | Yrd Mat Mat Mat Gar Mat Fac Gar Fac Gar Fac Gar Fac Gar Fac Gar Res Slots Evolved 14 | . . 2 2 . . 2 . 2 . . . 2 . 2 . 2 Power 1 | . . . . . . . . . . . . . . 1 . . Propulsion 3 | . . . . . . . . 2 . . . . . . . 1 Utility 9 | . . 1 2 . . 2 . . . . . 2 . 1 . 1 Weapon 1 | . . 1 . . . . . . . . . . . . . . Parts Attached 217 | 6 1 20 22 5 11 6 4 3 37 1 22 1 22 8 25 23 Power 16 | 1 . 1 4 1 . 1 . . 2 . 1 . . 1 2 2 Engine 8 | 1 . 1 2 1 . . . . . . 1 . . 1 . 1 Core 8 | . . . 2 . . 1 . . 2 . . . . . 2 1 Reactor . | . . . . . . . . . . . . . . . . . Propulsion 44 | 2 . 6 3 1 2 . 2 2 6 . 7 . 4 1 2 6 Treads 23 | 2 . 5 3 1 2 . 2 2 1 . 3 . . . . 2 Leg 15 | . . . . . . . . . 4 . 3 . 4 1 2 1 Wheel 4 | . . . . . . . . . 1 . 1 . . . . 2 Hover 1 | . . . . . . . . . . . . . . . . 1 Flight 1 | . . 1 . . . . . . . . . . . . . . Utility 69 | 1 1 7 7 1 6 4 2 1 9 1 5 1 8 2 9 4 Device 21 | . 1 1 3 . 3 2 . . . . . . 2 2 5 2 Storage 3 | 1 . 2 . . . . . . . . . . . . . . Processor 4 | . . . 1 . . 1 . . 2 . . . . . . . Hackware 21 | . . . . . 2 . 2 . 6 1 4 1 2 . 3 . Protection 20 | . . 4 3 1 1 1 . 1 1 . 1 . 4 . 1 2 Artifact . | . . . . . . . . . . . . . . . . . Weapon 88 | 2 . 6 8 2 3 1 . . 20 . 9 . 10 4 12 11 Energy Gun 18 | . . . 7 1 2 1 . . 5 . 2 . . . . . Energy Cannon 13 | . . 1 . . . . . . . . . . 4 . 5 3 Ballistic Gun 23 | 2 . 5 1 . . . . . 7 . 4 . 2 2 . . Ballistic Cannon 4 | . . . . 1 . . . . 1 . . . . . . 2 Launcher 3 | . . . . . . . . . 3 . . . . . . . Special Weapon 25 | . . . . . . . . . 4 . 3 . 4 2 7 5 Impact Weapon 1 | . . . . . . . . . . . . . . . . 1 Slashing Weapon . | . . . . . . . . . . . . . . . . . Piercing Weapon . | . . . . . . . . . . . . . . . . . Special Melee Weapon 1 | . . . . . 1 . . . . . . . . . . . Unidentified Prototypes 7 | . . 3 2 . 1 . . . . . . . . . . 1 Parts Lost 70 | . . 2 6 3 1 1 . . 14 . 8 . 3 . 2 30 Power 9 | . . 1 1 1 . . . . 1 . 1 . . . 1 3 Propulsion 18 | . . . 1 . . . . . 5 . 2 . 1 . 1 8 Utility 24 | . . 1 2 1 1 1 . . 5 . 2 . 1 . . 10 Weapon 19 | . . . 2 1 . . . . 3 . 3 . 1 . . 9 Highest Loss Streak 28 | . . 1 3 2 1 1 . . 11 . 7 . 2 . 1 28 To Critical Strikes . | . . . . . . . . . . . . . . . . . Average Slot Usage (%) 93 | . 85 96 89 89 89 92 99 93 91 100 98 94 99 94 97 65 Engine 4 | . 14 10 4 8 9 1 . . . . 2 5 5 10 7 . Core 3 | . . . 4 . . 5 7 6 5 6 3 . . . 2 4 Treads 12 | . 28 22 17 18 18 15 15 24 18 . 2 . . . . . Leg 7 | . . . . . . . . . 5 26 22 23 22 21 20 11 Device 8 | . . 11 8 9 13 15 17 8 6 6 2 . 4 5 7 7 Storage 7 | . 14 11 9 9 9 7 7 6 6 6 6 5 5 5 5 4 Processor 3 | . . . 9 9 . 7 1 . 3 6 1 . . . . . Hackware 15 | . . . . . 3 7 18 20 17 20 25 35 35 31 31 22 Protection 6 | . . 8 9 9 9 7 7 6 5 6 8 5 5 5 5 2 Energy Gun 11 | . . . 10 19 25 23 23 20 11 13 7 5 4 . . . Energy Cannon 2 | . . . . . . . . . . . . . 8 10 13 6 Ballistic Gun 6 | . 28 33 16 . . . . . 4 6 10 11 1 4 . . Peak Build Rating 115 | 6 7 21 39 39 47 55 59 67 72 66 70 69 83 94 96 115 Average Rating 55 | 4 6 16 32 37 43 51 56 65 66 65 65 67 75 88 90 76 On Entrance 51 | . 6 7 21 39 38 45 55 59 67 69 66 66 69 83 88 96 Naked Turns . | . . . . . . . . . . . . . . . . . Heaviest Build 146 | 14 15 98 113 112 111 111 104 110 118 106 119 111 125 134 146 139 Greatest Support 103 | 40 40 40 42 42 44 44 44 96 96 69 69 63 70 70 75 103 Greatest Overweight (x) 30 | . . 2 2 2 2 2 2 1 9 1 11 1 2 1 2 30 Average Overweight (x) 1 | . . . 2 2 2 2 2 1 1 1 1 1 1 1 1 2 Largest Inventory Capacity 25 | 8 8 25 25 25 25 25 25 25 25 25 25 25 25 25 25 25 Average Capacity 23 | 6 8 15 25 25 25 25 25 25 25 25 25 25 25 25 25 25 Most Carried 25 | 4 4 21 25 25 25 25 25 25 25 25 25 25 25 25 25 25 Average Carried 22 | 2 4 11 23 24 24 24 23 24 24 24 24 24 24 24 24 20 Final Capacity 25 | 8 8 25 25 25 25 25 25 25 25 25 25 25 25 25 25 25 Final Carried 25 | 4 4 20 25 25 23 22 25 25 25 25 25 25 25 25 24 15 Class Distribution -------------------- 28% | Bothacker-Tank 24% | Scavenger-Tank 24% | Botlord-Tank 7% | Skirmisher 4% | Bothacker-Gunner Dominant Class ---------------- Mutant | -10/Materials Scavenger-Tank | -9/Materials Scavenger-Tank | -8/Materials Scavenger-Tank | -8/Garrison Bothacker-Tank | -8/Materials Skirmisher | -7/Factory Bothacker-Tank | -7/Garrison Bothacker-Tank | -6/Factory Bothacker-Tank | -6/Garrison Bothacker-Gunner | -6/Factory Bothacker-Tank | -6/Garrison Botlord-Tank | -5/Factory Botlord-Tank | -5/Garrison Botlord-Tank | -4/Factory Botlord-Tank | -4/Garrison Botlord-Tank | -3/Research Resources | -11 -10 -9 -8 -8 -8 -7 -7 -6 -6 -6 -6 -5 -5 -4 -4 -3 ----------- Run | Yrd Mat Mat Mat Gar Mat Fac Gar Fac Gar Fac Gar Fac Gar Fac Gar Res Matter Collected 5192 | 214 93 858 684 191 140 40 45 28 707 . 674 . 503 290 504 221 Remotely 840 | . . . . . . . . . . . . . 247 290 100 203 Salvage Created 8681 | . 141 1561 1702 535 956 383 . . 849 52 433 . 772 . 706 591 Parts 440 | . 8 94 82 32 47 20 . . 40 1 18 . 30 . 36 32 Haulers Intercepted 13 | . . 6 5 . 2 . . . . . . . . . . . Recyclers Shooed 3 | . . . 1 . 1 . . . . . . . . . . 1 Parts Field Recycled . | . . . . . . . . . . . . . . . . . Retrieved Matter . | . . . . . . . . . . . . . . . . . Parts Self-Destructed . | . . . . . . . . . . . . . . . . . Prevented . | . . . . . . . . . . . . . . . . . Kills | -11 -10 -9 -8 -8 -8 -7 -7 -6 -6 -6 -6 -5 -5 -4 -4 -3 ------- Run | Yrd Mat Mat Mat Gar Mat Fac Gar Fac Gar Fac Gar Fac Gar Fac Gar Res Combat Hostiles Destroyed 153 | . 3 26 23 17 13 7 . . 24 1 6 . 13 . 12 8 Melee 3 | . . . . . . . . . . . . . . . . 3 Guns 111 | . 3 26 23 13 10 7 . . 15 1 6 . 7 . . . Cannons 23 | . . . . 4 . . . . . . . . 5 . 10 4 AOE 10 | . . . . . . . . . 9 . . . . . . 1 Classes Destroyed 18 | . 1 7 2 2 3 . . . 2 . 1 . . . . . Worker 1 | . . 1 . . . . . . . . . . . . . . Builder 2 | . . . . . 1 . . . . . . . . . . 1 Tunneler 1 | . . . 1 . . . . . . . . . . . . . Hauler 13 | . . 6 5 . 2 . . . . . . . . . . . Recycler 7 | . . 2 1 . 2 1 . . . . . . . . . 1 Operator 5 | . . 1 2 . 1 1 . . . . . . . . . . Watcher 4 | . . 1 3 . . . . . . . . . . . . . Swarmer 24 | . . 8 . 6 1 3 . . 4 . 1 . . . 1 . Cutter 4 | . . . . . . . . . 4 . . . . . . . Grunt 63 | . 3 13 16 4 5 3 . . 4 1 3 . 10 . . 1 Brawler 10 | . . . . . 2 . . . 7 . 1 . . . . . Duelist 2 | . . . 1 . . . . . 1 . . . . . . . Sentry 23 | . . 5 6 4 4 1 . . . . 1 . . . 2 . Specialist 1 | . . . . . . . . . 1 . . . . . . . Hunter 7 | . . . . 1 . . . . 3 . . . 2 . 1 . Programmer 16 | . . . . 2 . . . . . . . . . . 7 7 Heavy 1 | . . . . . 1 . . . . . . . . . . . Behemoth 3 | . . . . . . . . . . . 1 . 1 . 1 . Best Kill Streak 9 | . 2 9 6 5 8 3 . . 7 1 2 . 4 . 2 4 Combat Bots Only 8 | . 2 8 5 5 6 3 . . 7 1 2 . 4 . 2 4 Max Kills in Single Turn 2 | . 1 2 2 2 2 1 . . 2 1 2 . 1 . 1 1 Gunslinging 1 | . . 1 . 1 . . . . . . 1 . . . . . Exploded 2 | . . . . . . . . . 2 . . . . . . 1 Melee 1 | . . . . . . . . . . . . . . . . 1 Uniques/NPCs Destroyed . | . . . . . . . . . . . . . . . . . Combat | -11 -10 -9 -8 -8 -8 -7 -7 -6 -6 -6 -6 -5 -5 -4 -4 -3 -------- Run | Yrd Mat Mat Mat Gar Mat Fac Gar Fac Gar Fac Gar Fac Gar Fac Gar Res Hostile Shots Fired 1092 | . 20 109 125 68 60 39 . 3 126 3 100 . 73 . 55 311 Missed 298 | . 5 22 30 17 16 16 . 2 35 . 27 . 28 . 15 85 Damage Taken 15071 | . 161 960 1591 641 813 328 32 . 2202 55 1444 . 903 . 798 5143 Core 2429 | . 33 72 57 25 140 29 . . 284 18 183 . 128 . 149 1311 Absorbed by Shields 10 | . . . . . . . . . 10 . . . . . . . Core Remaining (%) 79 | 100 86 82 . . 59 . 95 . . . 42 . 87 . 87 . Volleys Fired 543 | . 11 73 85 38 35 17 5 1 64 3 46 . 60 12 59 34 Largest 3 | . 2 3 3 3 3 3 3 3 3 3 3 . 3 1 3 3 Hottest 300 | . 40 69 145 178 183 202 202 202 202 160 167 . 260 105 300 300 Shots Fired 1273 | . 22 219 237 100 105 48 14 3 130 9 88 . 132 12 101 53 Gun 978 | . 22 219 237 79 104 48 14 3 101 9 74 . 66 . 2 . Cannon 190 | . . . . 21 1 . . . 1 . . . 50 2 76 39 Launcher 14 | . . . . . . . . . 14 . . . . . . . Special 91 | . . . . . . . . . 14 . 14 . 16 10 23 14 Kinetic 564 | . 22 219 161 25 1 . . . 34 3 48 . 30 . 2 19 Thermal 605 | . . . 76 75 104 48 14 3 68 6 26 . 87 2 76 20 Explosive 14 | . . . . . . . . . 14 . . . . . . . Electromagnetic . | . . . . . . . . . . . . . . . . . Robot Hit Streak 30 | . 8 20 30 12 11 9 9 11 17 3 23 . 10 4 10 7 Robot Miss Streak 9 | . 2 7 5 3 3 4 . 3 9 2 5 . 6 1 5 6 Penetration Max 1 | . . . . . . . . . . . . . 1 . . . Secondary Targets 23 | . 1 6 3 2 3 2 . . 3 . 1 . 2 . . . Max Gunslinging Chain 1 | . 1 1 1 1 1 1 . . 1 . 1 . 1 . . . Shots Hit Robots 803 | . 16 140 164 59 65 34 5 2 82 4 57 . 80 8 47 40 Core Hits 344 | . 5 58 69 26 24 20 4 1 60 2 18 . 30 . 14 13 Critical Kills 11 | . . 1 1 . . . . . 1 . 2 . 4 . 1 1 Critical Parts Destroyed 14 | . . 3 1 . . . . . . . 3 . . . . 7 Critical Strikes 46 | . . 4 5 6 10 1 . . 1 . 5 . 4 . 1 9 Burn 19 | . . . 3 5 10 1 . . . . . . . . . . Meltdown 2 | . . . . . . . . . . . . . 1 . 1 . Destroy 15 | . . 4 2 . . . . . 1 . 5 . 3 . . . Blast 2 | . . . . 1 . . . . . . . . . . . 1 Smash 8 | . . . . . . . . . . . . . . . . 8 Melee Attacks 18 | . . . . . 2 . . . . . . . . . . 16 Impact 16 | . . . . . . . . . . . . . . . . 16 Slashing . | . . . . . . . . . . . . . . . . . Piercing . | . . . . . . . . . . . . . . . . . Sneak Attacks . | . . . . . . . . . . . . . . . . . Combat Hostiles . | . . . . . . . . . . . . . . . . . Follow-up Attacks . | . . . . . . . . . . . . . . . . . Damage Inflicted 16972 | . 215 2076 2763 1313 1414 730 112 40 2883 71 796 . 1658 . 1276 1625 Guns 11312 | . 213 2064 2763 1017 1400 727 112 40 1284 71 796 . 807 . 18 . Cannons 3501 | . . . . 291 . . . . . . . . 851 . 1258 1101 Explosions 1599 | . . . . . . . . . 1599 . . . . . . . Melee 523 | . . . . . . . . . . . . . . . . 523 Ramming 37 | . 2 12 . 5 14 3 . . . . . . . . . 1 Kinetic 5837 | . 213 2064 1763 336 . . . . 404 17 425 . 243 . 18 354 Thermal 8976 | . . . 1000 972 1400 727 112 40 880 54 371 . 1415 . 1258 747 Explosive 1599 | . . . . . . . . . 1599 . . . . . . . Electromagnetic . | . . . . . . . . . . . . . . . . . Impact 523 | . . . . . . . . . . . . . . . . 523 Slashing . | . . . . . . . . . . . . . . . . . Piercing . | . . . . . . . . . . . . . . . . . Highest Corruption 38 | . . . . 1 1 . 1 . 14 14 17 . . . 3 38 Average Corruption 6 | . . . . 1 1 . 1 . 8 14 15 . . . 1 31 Corruption Purged . | . . . . . . . . . . . . . . . . . Corruption Blocked . | . . . . . . . . . . . . . . . . . Effects 118 | . . . . 3 6 . 9 . 29 10 34 . . . 7 20 Message Errors 22 | . . . . . . . 3 . 4 3 8 . . . 2 2 Matter Fused 30 | . . . . 3 4 . 2 . 9 1 4 . . . 1 6 Heat Flow Errors 14 | . . . . . 1 . . . 3 3 4 . . . . 3 Energy Discharges 18 | . . . . . . . . . 4 3 7 . . . 2 2 Parts Rejected 2 | . . . . . . . . . . . . . . . . 2 Parts Fused 1 | . . . . . . . . . . . . . . . . 1 Data Loss (minor) 8 | . . . . . . . 1 . 2 . 2 . . . 2 1 Data Loss (major) 14 | . . . . . 1 . 3 . 6 . 4 . . . . . Misfires 1 | . . . . . . . . . . . 1 . . . . . Alerts 2 | . . . . . . . . . . . 2 . . . . . Misdirections 1 | . . . . . . . . . . . . . . . . 1 Weapon Failures 5 | . . . . . . . . . 1 . 2 . . . . 2 Overload Shots . | . . . . . . . . . . . . . . . . . Overflow Damage 542 | . . . . 9 . . . . 64 . . . 30 . 39 400 Projectiles 91 | . . . . 9 . . . . . . . . 30 . 39 13 Explosions 64 | . . . . . . . . . 64 . . . . . . . Melee 387 | . . . . . . . . . . . . . . . . 387 Knockbacks 7 | . . . . 2 . . . . . . . . . . . 5 Impact 4 | . . . . . . . . . . . . . . . . 4 Kinetic 3 | . . . . 2 . . . . . . . . . . . 1 Secondary . | . . . . . . . . . . . . . . . . . Self-Inflicted Damage 500 | . . . . . . . . . 500 . . . . . . . Shots 12 | . . . . . . . . . 12 . . . . . . . Rammed 9 | . 1 3 1 1 1 1 . . . . . . . . . 1 Targets Rammed 9 | . 1 3 1 1 1 1 . . . . . . . . . 1 Kicked . | . . . . . . . . . . . . . . . . . Crushed . | . . . . . . . . . . . . . . . . . Highest Temperature 477 | . . 2 337 216 477 187 . 48 221 246 315 . 328 4 294 472 Average Temperature 95 | . . 2 90 77 96 71 . 32 36 64 115 . 131 2 80 178 Received Heat Transfer 2909 | . 90 327 783 63 279 72 . . 261 27 463 . 435 . 9 100 Effects 8 | . . . . . 1 . . . . . . . 1 . . 6 Shutdowns 1 | . . . . . 1 . . . . . . . . . . . Interference 4 | . . . . . . . . . . . . . . . . 4 Matter Decay 1 | . . . . . . . . . . . . . 1 . . . Damage (major) 2 | . . . . . . . . . . . . . . . . 2 Siege Activations . | . . . . . . . . . . . . . . . . . Robots Corrupted . | . . . . . . . . . . . . . . . . . Combat Hostiles . | . . . . . . . . . . . . . . . . . Parts Fried 3 | . . . . . . . . . . . . . . . . 3 Impact Corruptions 12 | . . . . . . . . . . . . . . . . 12 Robots Melted 6 | . . . . . 3 . . . . . . . 1 . 2 . Combat Hostiles 6 | . . . . . 3 . . . . . . . 1 . 2 . Parts Melted 36 | . . . 2 6 12 3 . . 4 . 1 . 3 . 4 1 Heat Transferred 15459 | . . . 2072 1891 3246 1525 185 74 1753 111 767 . 2059 . 1147 629 Parts Sabotaged . | . . . . . . . . . . . . . . . . . Parts Stolen . | . . . . . . . . . . . . . . . . . Parts Stripped . | . . . . . . . . . . . . . . . . . Power Chain Reactions . | . . . . . . . . . . . . . . . . . Alert | -11 -10 -9 -8 -8 -8 -7 -7 -6 -6 -6 -6 -5 -5 -4 -4 -3 ------- Run | Yrd Mat Mat Mat Gar Mat Fac Gar Fac Gar Fac Gar Fac Gar Fac Gar Res Peak Influence 1525 | . 70 651 497 1178 1525 695 1267 689 1445 790 953 499 875 587 1441 824 Initial 810 | . . 29 247 323 573 693 387 665 440 758 553 499 349 459 410 810 Average 706 | . 16 419 299 774 984 560 750 668 946 760 776 499 686 514 1028 698 Maximum Alert Level 4 | . . 2 2 4 4 2 4 2 4 3 3 2 3 2 4 3 Low Security (%) 4 | 100 100 11 12 . . . . . . . . . . . . . Level 1 12 | . . 33 75 5 . . 1 . . . . . 3 . . . Level 2 38 | . . 55 11 24 9 100 54 100 31 . 21 100 57 100 24 37 Level 3 30 | . . . . 67 57 . 27 . 31 100 78 . 38 . 24 62 Level 4 14 | . . . . 2 33 . 16 . 36 . . . . . 50 . Level 5 . | . . . . . . . . . . . . . . . . . High Security . | . . . . . . . . . . . . . . . . . Max Security . | . . . . . . . . . . . . . . . . . Squads Dispatched 12 | . 1 1 2 . 6 1 . . . . . . . . . 1 Investigation 2 | . 1 . . . 1 . . . . . . . . . . . Extermination 1 | . . . . . . . . . . . . . . . . 1 Reinforcement 6 | . . 1 2 . 2 1 . . . . . . . . . . Assault 2 | . . . . . 2 . . . . . . . . . . . Garrison 1 | . . . . . 1 . . . . . . . . . . . Intercept . | . . . . . . . . . . . . . . . . . Searches Triggered . | . . . . . . . . . . . . . . . . . Construction Impeded . | . . . . . . . . . . . . . . . . . Haulers Reinforced . | . . . . . . . . . . . . . . . . . Active Scanning Responses . | . . . . . . . . . . . . . . . . . Cargo Convoy Interrupts . | . . . . . . . . . . . . . . . . . Stealth | -11 -10 -9 -8 -8 -8 -7 -7 -6 -6 -6 -6 -5 -5 -4 -4 -3 --------- Run | Yrd Mat Mat Mat Gar Mat Fac Gar Fac Gar Fac Gar Fac Gar Fac Gar Res Distress Signals 6 | . . 2 1 . . . . . . . . . . 1 . 2 Communications Jammed . | . . . . . . . . . . . . . . . . . Distress Signals . | . . . . . . . . . . . . . . . . . Times Spotted 278 | . 3 39 29 23 36 9 . 3 36 1 24 . 23 6 33 13 Peak Tracking Total 10 | . 3 6 3 6 6 3 . 1 8 1 6 . 9 4 10 8 Tactical Retreats 16 | . . 2 1 2 4 1 . . 1 . 4 . . . 1 . Traps | -11 -10 -9 -8 -8 -8 -7 -7 -6 -6 -6 -6 -5 -5 -4 -4 -3 ------- Run | Yrd Mat Mat Mat Gar Mat Fac Gar Fac Gar Fac Gar Fac Gar Fac Gar Res Traps Triggered 27 | . 1 . . 3 . . 2 . 5 . 4 . 9 . 3 . Indirectly . | . . . . . . . . . . . . . . . . . Trap Hack Attempts . | . . . . . . . . . . . . . . . . . Triggered . | . . . . . . . . . . . . . . . . . Disarmed . | . . . . . . . . . . . . . . . . . Reprogrammed . | . . . . . . . . . . . . . . . . . Reused . | . . . . . . . . . . . . . . . . . Traps Extracted . | . . . . . . . . . . . . . . . . . Installed . | . . . . . . . . . . . . . . . . . Triggered . | . . . . . . . . . . . . . . . . . Machines | -11 -10 -9 -8 -8 -8 -7 -7 -6 -6 -6 -6 -5 -5 -4 -4 -3 ---------- Run | Yrd Mat Mat Mat Gar Mat Fac Gar Fac Gar Fac Gar Fac Gar Fac Gar Res Machines Disabled 32 | . . 3 . 4 5 . 3 . 6 . 2 . 3 . 5 1 Max in Single Turn 2 | . . 1 . 1 1 . 1 . 2 . 1 . 1 . 1 1 Garrison Access 1 | . . . . . 1 . . . . . . . . . . . Garrison Relay 21 | . . . . 5 . . 3 . 4 . 2 . 3 . 4 . Phase Generator 1 | . . . . . . . . . 1 . . . . . . . Machines Repaired . | . . . . . . . . . . . . . . . . . Machines Dismantled 5 | . . . . . . . . . . . . . 1 . 4 . Machines Sabotaged . | . . . . . . . . . . . . . . . . . Overloaded Fab Kills . | . . . . . . . . . . . . . . . . . Hacking | -11 -10 -9 -8 -8 -8 -7 -7 -6 -6 -6 -6 -5 -5 -4 -4 -3 --------- Run | Yrd Mat Mat Mat Gar Mat Fac Gar Fac Gar Fac Gar Fac Gar Fac Gar Res Machines Accessed 22 | . 1 4 1 2 1 2 2 1 1 1 . 1 2 1 2 . Terminals 16 | . 1 4 . 2 1 1 2 . 1 . . . 2 . 2 . Fabricators . | . . . . . . . . . . . . . . . . . Repair Stations . | . . . . . . . . . . . . . . . . . Recycling Units . | . . . . . . . . . . . . . . . . . Scanalyzers . | . . . . . . . . . . . . . . . . . Garrison Access 6 | . . . 1 . . 1 . 1 . 1 . 1 . 1 . . Total Hacks 36 | . 2 7 1 5 1 3 4 1 2 1 . 1 3 1 4 . Successful 16 | . 1 2 1 2 1 2 . 1 . 1 . 1 1 1 2 . Failed 20 | . 1 5 . 3 . 1 4 . 2 . . . 2 . 2 . Catastrophic 7 | . . 2 . 1 . . 1 . 1 . . . 1 . 1 . Database Lockouts . | . . . . . . . . . . . . . . . . . Manual 3 | . . 3 . . . . . . . . . . . . . . Terminals 30 | . 2 7 . 5 1 2 4 . 2 . . . 3 . 4 . Fabricators . | . . . . . . . . . . . . . . . . . Repair Stations . | . . . . . . . . . . . . . . . . . Recycling Units . | . . . . . . . . . . . . . . . . . Scanalyzers . | . . . . . . . . . . . . . . . . . Garrison Access 6 | . . . 1 . . 1 . 1 . 1 . 1 . 1 . . Terminal Hacks 10 | . 1 2 . 2 1 1 . . . . . . 1 . 2 . Open Door 1 | . . . . 1 . . . . . . . . . . . . Branch Access Points 1 | . . . . . 1 . . . . . . . . . . . Emergency Access Points 1 | . . . . . . . . . . . . . . . 1 . Unreport Threat 1 | . . . . . . 1 . . . . . . . . . . Dispatch Records 1 | . . 1 . . . . . . . . . . . . . . Registered Components 1 | . 1 . . . . . . . . . . . . . . . Zone Layout 1 | . . 1 . . . . . . . . . . . . . . Garrison Registry 3 | . . . . 1 . . . . . . . . 1 . 1 . Fabricator Hacks . | . . . . . . . . . . . . . . . . . Repair Station Hacks . | . . . . . . . . . . . . . . . . . Recycling Unit Hacks . | . . . . . . . . . . . . . . . . . Scanalyzer . | . . . . . . . . . . . . . . . . . Garrison Access Hacks 6 | . . . 1 . . 1 . 1 . 1 . 1 . 1 . . Unlock Access 6 | . . . 1 . . 1 . 1 . 1 . 1 . 1 . . Unauthorized Hacks . | . . . . . . . . . . . . . . . . . Terminals . | . . . . . . . . . . . . . . . . . Fabricators . | . . . . . . . . . . . . . . . . . Repair Stations . | . . . . . . . . . . . . . . . . . Recycling Units . | . . . . . . . . . . . . . . . . . Scanalyzers . | . . . . . . . . . . . . . . . . . Garrison Access . | . . . . . . . . . . . . . . . . . Data Cores Recovered 1 | . . . . . 1 . . . . . . . . . . . Used . | . . . . . . . . . . . . . . . . . Hacking Detections 17 | . 1 3 . 1 1 1 2 1 1 . . 1 2 1 2 . Full Trace Events 3 | . . . . 1 . . 1 . 1 . . . . . . . Feedback Events 1 | . . . . . . . 1 . . . . . . . . . Corruption 1 | . . . . . . . 1 . . . . . . . . . Feedback Blocked . | . . . . . . . . . . . . . . . . . Robot Schematics Acquired . | . . . . . . . . . . . . . . . . . Robots Built . | . . . . . . . . . . . . . . . . . Authchips . | . . . . . . . . . . . . . . . . . Time . | . . . . . . . . . . . . . . . . . Total Robot Build Rating . | . . . . . . . . . . . . . . . . . Part Schematics Acquired . | . . . . . . . . . . . . . . . . . Parts Built . | . . . . . . . . . . . . . . . . . Authchips . | . . . . . . . . . . . . . . . . . Time . | . . . . . . . . . . . . . . . . . Total Part Build Rating . | . . . . . . . . . . . . . . . . . Parts Repaired . | . . . . . . . . . . . . . . . . . Time . | . . . . . . . . . . . . . . . . . Parts Recycled . | . . . . . . . . . . . . . . . . . Recycled Matter . | . . . . . . . . . . . . . . . . . Retrieved Matter . | . . . . . . . . . . . . . . . . . Retrieved Components . | . . . . . . . . . . . . . . . . . Parts Scanalyzed . | . . . . . . . . . . . . . . . . . Part Schematics Acquired . | . . . . . . . . . . . . . . . . . Parts Damaged . | . . . . . . . . . . . . . . . . . Bothacking | -11 -10 -9 -8 -8 -8 -7 -7 -6 -6 -6 -6 -5 -5 -4 -4 -3 ------------ Run | Yrd Mat Mat Mat Gar Mat Fac Gar Fac Gar Fac Gar Fac Gar Fac Gar Res Used RIF Installer 6 | . . . . 1 . . 1 . 1 . 1 . 1 . 1 . Hotswap 1 | . . . . . . . . . 1 . . . . . . . Code Merge 1 | . . . . . . . . . . . 1 . . . . . Command Fork 1 | . . . . . . . . . . . . . 1 . . . Robot Detection 1 | . . . . . . . 1 . . . . . . . . . Patrol Navigation 1 | . . . . . . . . . . . . . . . 1 . Robots Hacked 43 | . . . . . 2 . . . 8 . 7 . 8 5 10 3 Non-combat 5 | . . . . . . . . . . . . . . 3 . 2 Combat 38 | . . . . . 2 . . . 8 . 7 . 8 2 10 1 Robot Hacks Applied 43 | . . . . . 2 . . . 8 . 7 . 8 5 10 3 parse_system 1 | . . . . . . . . . . . 1 . . . . . drop_inventory 2 | . . . . . . . . . . . . . . 1 . 1 map_route 1 | . . . . . . . . . . . . . . 1 . . scatter_targeting 1 | . . . . . . . . . 1 . . . . . . . spike_heat 1 | . . . . . . . . . . . . . . . 1 . amplify_resonance 10 | . . . . . . . . . 3 . . . 3 . 3 1 overwrite_iff 5 | . . . . . . . . . 1 . 1 . 2 . 1 . formatsys_low 1 | . . . . . . . . . . . . . . 1 . . formatsys_high 21 | . . . . . 2 . . . 3 . 5 . 3 2 5 1 Relay Couplers Released 88 | . . . . 20 3 . 10 . 16 . 8 . 12 . 19 . Machine Destruction 85 | . . . . 20 3 . 10 . 16 . 8 . 12 . 16 . Programmers 3 | . . . . . . . . . . . . . . . 3 . Attached 21 | . . . . . 2 . 2 . 6 1 4 1 2 . 3 . Merged Code Value 168 | . . . . . . . . . . . 10 . 48 . 110 . Fabnet Peak Effective % . | . . . . . . . . . . . . . . . . . Robots Rewired 11 | . . . . . . . 5 . 6 . . . . . . . Allies Hacked . | . . . . . . . . . . . . . . . . . Hacks Repelled . | . . . . . . . . . . . . . . . . . Allies | -11 -10 -9 -8 -8 -8 -7 -7 -6 -6 -6 -6 -5 -5 -4 -4 -3 -------- Run | Yrd Mat Mat Mat Gar Mat Fac Gar Fac Gar Fac Gar Fac Gar Fac Gar Res Total Allies 41 | . . . . 1 2 . 5 . 10 . 6 . 5 3 8 1 Largest Group 7 | . . . . 1 2 1 4 4 7 7 7 3 4 6 7 1 Highest-Rated Group 277 | . . . . 149 149 25 80 80 196 196 196 111 147 277 256 47 Highest-Rated Ally 149 | . . . . 149 149 25 32 32 40 40 41 41 49 49 49 47 Total Orders . | . . . . . . . . . . . . . . . . . Ally Attacks 289 | . . . . 5 41 . 4 15 15 3 61 . 30 22 92 1 Total Damage 7901 | . . . . 326 1410 . 51 306 371 40 1301 . 800 731 2517 48 Kills 59 | . . . . 2 18 . . 1 3 . 11 . 5 4 15 . Allies Corrupted 3 | . . . . . . . . . . . 3 . . . . . Allies Melted 1 | . . . . . . . . . . . . . 1 . . . Intel | -11 -10 -9 -8 -8 -8 -7 -7 -6 -6 -6 -6 -5 -5 -4 -4 -3 ------- Run | Yrd Mat Mat Mat Gar Mat Fac Gar Fac Gar Fac Gar Fac Gar Fac Gar Res Robot Analysis Total . | . . . . . . . . . . . . . . . . . Derelict Logs Recovered . | . . . . . . . . . . . . . . . . . Drone Launches . | . . . . . . . . . . . . . . . . . Drone Recoveries . | . . . . . . . . . . . . . . . . . Exploration | -11 -10 -9 -8 -8 -8 -7 -7 -6 -6 -6 -6 -5 -5 -4 -4 -3 ------------- Run | Yrd Mat Mat Mat Gar Mat Fac Gar Fac Gar Fac Gar Fac Gar Fac Gar Res Turns Passed 13784 | 72 181 1110 1552 1235 736 647 1653 381 1808 231 681 102 1160 175 1423 637 Spaces Moved 4818 | 41 91 387 389 352 193 189 521 164 704 116 251 51 481 78 598 212 Core 10 | 5 . . . . . . . . . . . . . . . 5 Treads 2829 | 36 91 387 389 352 193 189 521 164 474 . 33 . . . . . Legs 1910 | . . . . . . . . . 219 116 206 51 481 78 598 161 Wheels 28 | . . . . . . . . . 11 . 12 . . . . 5 Hover 41 | . . . . . . . . . . . . . . . . 41 Flight . | . . . . . . . . . . . . . . . . . Fastest Speed 50 | 50 160 160 312 312 305 305 305 225 190 190 190 190 190 190 190 130 Average Speed 239 | 146 160 208 317 312 307 305 305 227 218 190 200 190 190 190 194 223 Slowest Speed 1550 | 160 160 320 320 312 312 305 305 228 470 190 330 190 260 190 260 1550 Overloaded Moves . | . . . . . . . . . . . . . . . . . Propulsion Burnouts . | . . . . . . . . . . . . . . . . . Robots Hopped . | . . . . . . . . . . . . . . . . . Cave-ins Triggered . | . . . . . . . . . . . . . . . . . Exploration Rate (%) 32 | 5 26 54 51 48 28 9 74 6 68 3 35 2 64 3 61 8 Regions Visited 16 Branch Regions . Pre-discovered Areas . | . . . . . . . . . . . . . . . . . Known Exits Taken 6 | . . . 1 . . 1 . 1 . 1 . 1 . 1 . . Unknown Exits Taken 4 | 1 1 1 . . 1 . . . . . . . . . . . Scrap Searched . | . . . . . . . . . . . . . . . . . Spaces Dug 4 | . . . . . . . . . . . . . . 2 2 . Terrain Destroyed 174 | . . . . . 1 . . . 145 . . . 2 2 16 8 Melee . | . . . . . . . . . . . . . . . . . Projectile 34 | . . . . . 1 . . . 5 . . . 2 2 16 8 AOE 139 | . . . . . . . . . 139 . . . . . . . Terrain Rammed . | . . . . . . . . . . . . . . . . . Walls Destroyed . | . . . . . . . . . . . . . . . . . Machines Disabled . | . . . . . . . . . . . . . . . . . Actions | -11 -10 -9 -8 -8 -8 -7 -7 -6 -6 -6 -6 -5 -5 -4 -4 -3 --------- Run | Yrd Mat Mat Mat Gar Mat Fac Gar Fac Gar Fac Gar Fac Gar Fac Gar Res Total 6055 | 50 103 525 530 415 264 220 582 171 871 121 361 59 623 102 767 291 Wait 127 | . . 17 1 7 1 1 . . 14 . 19 . 23 . 43 1 Move 4796 | 40 90 386 388 350 192 188 519 163 702 115 249 50 479 77 596 212 Hop . | . . . . . . . . . . . . . . . . . Pick Up 119 | 4 . 15 19 8 9 4 11 1 16 1 9 4 4 2 11 1 Fast Attach 35 | 6 1 3 2 . . . . 2 7 . 4 . 1 . 2 7 Attach 72 | . . 3 8 3 3 4 2 1 16 1 7 1 3 3 4 13 Detach 14 | . . . 1 . . . . 1 5 . . . . 2 2 3 Swap 110 | . . 14 12 2 8 2 2 . 14 . 11 . 18 5 19 3 Drop 84 | . . 11 13 4 11 3 8 2 4 1 6 4 7 1 9 . Fire 543 | . 11 73 85 38 35 17 5 1 64 3 46 . 60 12 59 34 Melee 18 | . . . . . 2 . . . . . . . . . . 16 Ram 1 | . . . . . . . . . . . . . . . . 1 Kick . | . . . . . . . . . . . . . . . . . Crush 8 | . 1 3 1 1 1 1 . . . . . . . . . . Escape Stasis 56 | . . . . 2 . . . . 9 . 10 . 25 . 10 . Rewire 57 | . . . . . 2 . 35 . 20 . . . . . . . Trap . | . . . . . . . . . . . . . . . . . Miscellaneous 15 | . . . . . . . . . . . . . 3 . 12 . Route ------- -11/Scrapyard -10/Materials -9/Materials (discovered 2 exits: *Mat / [*Min]) -8/Materials (discovered 2 exits: *Fac / Gar) -8/Garrison (discovered 3 exits: *Mat x3) -8/Materials -7/Factory -7/Garrison (discovered 2 exits: *Fac x2) -6/Factory -6/Garrison (discovered 2 exits: *Fac x2) -6/Factory -6/Garrison -5/Factory -5/Garrison (discovered 3 exits: *Fac x3) -4/Factory -4/Garrison (discovered 3 exits: [*Res x3]) -3/Research History --------- Turn | Location | Event 5 | -11/Scrapyard | Discovered new exit (range 14) 73 | -11/Scrapyard | Entered Materials 189 | -10/Materials | Discovered new exit (range 15) 254 | -10/Materials | Entered another Materials area 254 | -9/Materials | Evolved 2 slots: Utility x1, Weapon x1 540 | -9/Materials | Discovered new exit (range 13) 704 | -9/Materials | Destroyed 8 combat bots 835 | -9/Materials | Build established: Scavenger-Tank 1300 | -9/Materials | Discovered new exit (range 15) 1364 | -9/Materials | Entered another Materials area 1364 | -8/Materials | Evolved 2 slots: Utility x2 1612 | -8/Materials | Lost 3 parts (2u1w) 2294 | -8/Materials | Discovered new exit (range 10) 2913 | -8/Materials | Identified exit to Garrison 2916 | -8/Materials | Entered Garrison 2990 | -8/Garrison | Triggered checkpoint 3051 | -8/Garrison | Garrison Relay disabled 3263 | -8/Garrison | Discovered new exit (range 66) 3263 | -8/Garrison | Discovered new exit (range 84) 3263 | -8/Garrison | Discovered new exit (range 29) 3513 | -8/Garrison | Garrison Relay disabled 3515 | -8/Garrison | Garrison Relay disabled 3528 | -8/Garrison | Garrison Relay disabled 3668 | -8/Garrison | Rescued HV-R5K 3776 | -8/Garrison | Triggered checkpoint 3784 | -8/Garrison | Triggered checkpoint 3908 | -8/Garrison | Triggered checkpoint 3984 | -8/Garrison | Installed Relay Interface Framework 4018 | -8/Garrison | Garrison Relay disabled 4151 | -8/Garrison | Entered Materials 4151 | -8/Materials | Accompanied by 1 ally (HV-R5K) 4302 | -8/Materials | Build established: Bothacker-Tank 4551 | -8/Materials | First assault squad dispatched 4603 | -8/Materials | Garrison activated, responded to threat 4831 | -8/Materials | Discovered new exit (range 15) 4887 | -8/Materials | Entered Factory 4887 | -7/Factory | Accompanied by 1 ally 4887 | -7/Factory | Evolved 2 slots: Utility x2 5192 | -7/Factory | Build established: Skirmisher 5522 | -7/Factory | Identified exit to Garrison 5534 | -7/Factory | Entered Garrison 5534 | -7/Garrison | Discovered recently destroyed garrison 5534 | -7/Garrison | Accompanied by 1 ally 5827 | -7/Garrison | Expanded RIF knowledge: Robot Detection 5859 | -7/Garrison | Garrison Relay disabled 5965 | -7/Garrison | Discovered new exit (range 5) 5975 | -7/Garrison | Identified exit to Factory 6266 | -7/Garrison | Build established: Bothacker-Tank 6508 | -7/Garrison | Garrison Relay disabled 7071 | -7/Garrison | Garrison Relay disabled 7157 | -7/Garrison | Discovered exit to Factory (range 10) 7187 | -7/Garrison | Entered Factory 7187 | -6/Factory | Accompanied by 4 allies 7187 | -6/Factory | Evolved 2 slots: Propulsion x2 7552 | -6/Factory | Spotted B-75 Beast 7565 | -6/Factory | Identified exit to Garrison 7568 | -6/Factory | Entered Garrison 7595 | -6/Garrison | Lost 3 allies 7624 | -6/Garrison | Triggered checkpoint 7656 | -6/Garrison | Garrison Relay disabled 7817 | -6/Garrison | Triggered checkpoint 7840 | -6/Garrison | Triggered checkpoint 7944 | -6/Garrison | Triggered checkpoint 8016 | -6/Garrison | Garrison Relay disabled 8146 | -6/Garrison | Discovered new exit (range 12) 8262 | -6/Garrison | Triggered checkpoint 8332 | -6/Garrison | Triggered checkpoint 8358 | -6/Garrison | Garrison Relay disabled 8443 | -6/Garrison | Discovered new exit (range 15) 8671 | -6/Garrison | Phase Generator disabled 8724 | -6/Garrison | Triggered checkpoint 8864 | -6/Garrison | System corruption reached 10% 8891 | -6/Garrison | Destroyed 7 combat bots 8906 | -6/Garrison | Lost 11 parts (1p4n4u2w) 9076 | -6/Garrison | Expanded RIF knowledge: Hotswap 9105 | -6/Garrison | Garrison Relay disabled 9376 | -6/Garrison | Entered Factory 9376 | -6/Factory | Accompanied by 7 allies 9398 | -6/Factory | Build established: Bothacker-Gunner 9605 | -6/Factory | Identified exit to Garrison 9607 | -6/Factory | Entered Garrison 9607 | -6/Garrison | Accompanied by 7 allies 9655 | -6/Garrison | Triggered checkpoint 9715 | -6/Garrison | Garrison Relay disabled 9734 | -6/Garrison | Lost 7 allies 9839 | -6/Garrison | Spotted B-75 Beast 9881 | -6/Garrison | Destroyed B-75 Beast 9904 | -6/Garrison | Core integrity fell below 50% 9962 | -6/Garrison | Lost 7 parts (2n2u3w) 10118 | -6/Garrison | Expanded RIF knowledge: Code Merge 10145 | -6/Garrison | Discovered new exit (range 10) 10183 | -6/Garrison | Triggered checkpoint 10213 | -6/Garrison | Garrison Relay disabled 10288 | -6/Garrison | Entered Factory 10288 | -5/Factory | Accompanied by 3 allies 10288 | -5/Factory | Evolved 2 slots: Utility x2 10389 | -5/Factory | Identified exit to Garrison 10390 | -5/Factory | Entered Garrison 10390 | -5/Garrison | Accompanied by 3 allies 10420 | -5/Garrison | Build established: Botlord-Tank 10434 | -5/Garrison | Triggered checkpoint 10437 | -5/Garrison | Spotted B-75 Beast 10452 | -5/Garrison | Allies destroyed B-75 Beast 10508 | -5/Garrison | Triggered checkpoint 10510 | -5/Garrison | Triggered checkpoint 10726 | -5/Garrison | Discovered new exit (range 15) 10964 | -5/Garrison | Triggered checkpoint 11010 | -5/Garrison | Expanded RIF knowledge: Command Fork 11048 | -5/Garrison | Discovered new exit (range 9) 11069 | -5/Garrison | Discovered new exit (range 75) 11069 | -5/Garrison | Discovered new exit (range 62) 11069 | -5/Garrison | Discovered new exit (range 6) 11084 | -5/Garrison | Triggered checkpoint 11099 | -5/Garrison | Garrison Relay disabled 11232 | -5/Garrison | Spotted B-75 Beast 11237 | -5/Garrison | Destroyed B-75 Beast 11237 | -5/Garrison | Garrison Relay disabled 11357 | -5/Garrison | Garrison Relay disabled 11550 | -5/Garrison | Entered Factory 11550 | -4/Factory | Accompanied by 3 allies 11550 | -4/Factory | Evolved 2 slots: Power x1, Utility x1 11691 | -4/Factory | Found Tesla Bomb Launcher 11723 | -4/Factory | Identified exit to Garrison 11725 | -4/Factory | Entered Garrison 11725 | -4/Garrison | Accompanied by 5 allies 11837 | -4/Garrison | Triggered checkpoint 11875 | -4/Garrison | Garrison Relay disabled 12064 | -4/Garrison | Spotted B-86 Titan 12079 | -4/Garrison | Triggered checkpoint 12086 | -4/Garrison | Destroyed B-86 Titan 12140 | -4/Garrison | Lost 4 allies 12204 | -4/Garrison | Lost 4 allies 12264 | -4/Garrison | Discovered new exit (range 10) 12343 | -4/Garrison | Discovered new exit (range 22) 12343 | -4/Garrison | Discovered new exit (range 60) 12343 | -4/Garrison | Discovered new exit (range 79) 12428 | -4/Garrison | Garrison Relay disabled 12567 | -4/Garrison | Triggered checkpoint 12637 | -4/Garrison | Garrison Relay disabled 12664 | -4/Garrison | Garrison Relay disabled 12739 | -4/Garrison | Triggered checkpoint 12851 | -4/Garrison | Expanded RIF knowledge: Patrol Navigation 12984 | -4/Garrison | Found Relay Coupler [Proto] 12988 | -4/Garrison | Found Relay Coupler [Proto] 12991 | -4/Garrison | Found Relay Coupler [Proto] 12995 | -4/Garrison | Found Relay Coupler [Proto] 13148 | -4/Garrison | Entered Research 13148 | -3/Research | Evolved 2 slots: Propulsion x1, Utility x1 13477 | -3/Research | P-80 Master assimilated allied Veteran 8a 13486 | -3/Research | System corruption reached 10% 13541 | -3/Research | Core integrity fell below 50% 13551 | -3/Research | System corruption reached 30% 13596 | -3/Research | Core integrity fell below 20% 13632 | -3/Research | Lost 28 parts (3p8n9u8w) 13785 | -3/Research | Destroyed by H-77 Assassin with Coil Gun Last Messages --------------- 13771_ Destroyed Imp. Targeting Computer. 13772_ R-10 Processor collects Com. Wheel. 13773_ System corrupted: Lrn. Proton Cannon rejected. 13773_ Penetrated by Slug. 13773_ Slug penetrates R-10 Processor. 13773_ Penetrated by Slug. 13773_ Slug penetrates Wall. 13775_ U-05 Engineer builds a Wall. 13776_ U-05 Engineer builds a Door. 13777_ Destroyed Welding Torch. 13777_ U-05 Engineer destroyed. 13778_ Slug penetrates Wall. 13779_ Penetrated by Slug. 13782_ U-05 Engineer builds a Wall. 13782_ Slug penetrates Wall. 13782_ Penetrated by Slug. 13782_ Slug penetrates Wall. 13782_ Hvy. Gauss Cannon destroyed. 13784_ R-10 Processor collects Com. Wheel. 13785_ Penetrated by Slug. Map ----- +----------------------------------------------------+ | ?????????????????????????????????????????????????? | | ?????????????????????????????????????????????????? | | ?????????????????????????????????????????????????? | | ?????????????????????????????????????????????????? | | ?????????????????????????????????????????????????? | | ?????????????????????????????????????????????????? | | ?????????????????????????????????????????????????? | | ????????????????#????????????????????????????????? | | ????????????????# ???????????????????????????????? | | ????????????????+ ??????????????????????????????? | | ????????????????# ??????? ?????#???????????????? | | ????????????????# ?????? ??? #???????????????? | | ????????????????# ######+#### #######?????????? | | ????????????????# ????????? | | ????????????????# ????????? | | ????????????????? ^ ^ ???????? | | ????????????????????? ]]w ???????? | | ????????????????????????# ^"""????????????? | | ???????????############## % ^ ^""" ???????? | | ???????????# # R """ #??????? | | ???????????# #=% % #??????? | | ???????????# uh #??????? | | ???????????# # h #??????? | | ???????????# # % #??????? | | ???????????#############; #############???????? | | ???????????????# #@ % # #?????????? | | ???????????????# # % # #?????????? | | ???????????????# # # """ #?????????? | | ???????????????# ; %%; """ #?????????? | | ???????????????# # %# """ #?????????? | | ???????????????# ?# % # #?????????? | | ???????????????# ???# # #?????????? | | ???????????????# ????# # #?????????? | | ???????????????# ??????# #####+#####?????????? | | ???????????????#######??# #???? #?????????????? | | ??????????????? ??# #????##?????????????? | | ??????????????? ?# #???????????????????? | | ???????????????"" ?# #???????????????????? | | ???????????????"" "" # #?????? ????????????? | | ???????????????"" "" # #???? " ????????????? | | ????????????? "" + #??""R"?????????????? | | ????????????? S # # """"" #?????????? | | ???????????# """ "" # + #?????????? | | ???????????????"" "" ?# # #?????????? | | ????????????????" "" ?# #??########?????????? | | ???????????????? ??# #? """"?????????????? | | ???????????????? ??# #? """"?????????????? | | ?????????????????####???# # """" ????????????? | | ????????????????????????# # """" #?????????? | | ????????????????????????# + #?????????? | +----------------------------------------------------+ Best States ------------- Heat Dissipation 100 Energy Generation 32 Energy Capacity 365 Matter Stores 300 Matter Capacity 300 Sight Range 16 Robot Scan Range 15 Terrain Scan Density 10 Armor Coverage 600 Resistance: TH 30 Evasion (%) 40 Target Analysis 8 Armor Integrity Analysis 30 Recoil Reduction 4 Force Boost 30 Relay Coupler Types 7 Relay Coupler Value 220 Item Schematics ----------------- None Robot Schematics ------------------ None Fabricated ------------ Nothing Alien Tech Used ----------------- None Achievements -------------- None Challenges ------------ None Game ------ Seed PersonalBoreMinigun Manual? 0 Play Time 01:45:49 Cumulative 116.0 hours Start 2024.10.06 @ 11:42:20 End 2024.10.06 @ 13:30:01 Sessions 1 Manual Loads 0 Difficulty Rogue Special Mode None Game No. 133 Rogue 125 Adventurer 0 Explorer 8 Win Type - Total 6 Types 4/0/0/2/0/0/0/0/0 Lore% 49 Gallery% 68 Achievement% 60 Wizard Run 0 Options --------- Layout 0 ASCII 0 Keyboard 0 Movement Numpad Keybinds 0 Fullscreen 2 Font 18/SmallcapsGlow Map View 76x50 Zoom Use 0% Tactical HUD 1 Map Filters NONE Filters NONE Steam 1 RUN: 3f18f250-24fb-4370-b19c-c02330908c0b